fUST/lending_fUST_20240811
["ID","MTS","AMOUNT","RATE_DAILY","PERIOD"]
[334649753,1723391440652,-2097.766407,0.00018663,2]
[334649754,1723391440662,-726.963009,0.00018663,2]
[334649755,1723391440672,-537.303715,0.00018663,2]
[334649756,1723391440682,-537.303715,0.00018663,2]
[334649758,1723391440691,-762.956574,0.00018663,2]
[334649759,1723391440702,-762.956574,0.00018663,2]
[334649760,1723391440715,-308.615301,0.00018663,2]
[334649761,1723391440727,-308.615301,0.00018663,2]
[334649762,1723391440736,-151.0,0.00018663,2]
[334649763,1723391440745,-371.374112,0.00018663,2]
[334649764,1723391440754,-1048.838175,0.00018663,2]
[334649765,1723391440764,-151.0,0.00018663,2]
[334649766,1723391440774,-371.374112,0.00018663,2]
[334649767,1723391440783,-1048.838175,0.00018663,2]
[334649768,1723391440795,-151.0,0.00018663,2]
[334649769,1723391440805,-151.0,0.00018663,2]
[334649770,1723391440814,-652.406214,0.00018663,2]
[334649771,1723391440824,-652.406214,0.00018663,2]
[334649772,1723391440834,-151.0,0.00018663,2]
[334649773,1723391440845,-151.0,0.00018663,2]
[334649774,1723391440856,-154.76012181,0.00018667,2]
[334649775,1723391440866,-160.30213643,0.00018667,2]
[334649776,1723391440879,-154.76012181,0.00018667,2]
[334649777,1723391440888,-151.0,0.00018673,2]
[334649778,1723391440898,-151.0,0.00018673,2]
[334649779,1723391440907,-151.0,0.00018673,2]
[334649780,1723391440917,-319.874486,0.00018686,2]
[334649781,1723391440928,-319.874486,0.00018686,2]
[334649782,1723391440937,-151.0,0.00018686,2]
[334649783,1723391440947,-217.634412,0.00018686,2]
[334649784,1723391440956,-217.634412,0.00018686,2]
[334649785,1723391440966,-151.0,0.00018686,2]
[334649786,1723391440976,-150.112233,0.000187,2]
[334649787,1723391440985,-233.0,0.00018746,2]
[334649788,1723391440995,-233.0,0.00018746,2]
[334649789,1723391441004,-233.0,0.00018746,2]
[334649790,1723391441013,-233.0,0.00018746,2]
[334649791,1723391441023,-233.0,0.00018746,2]
[334649792,1723391441032,-233.0,0.00018746,2]
[334649793,1723391441041,-233.0,0.00018746,2]
[334649794,1723391441051,-233.0,0.00018746,2]
[334649795,1723391441061,-233.0,0.00018746,2]
[334649796,1723391441071,-233.0,0.00018746,2]
[334649797,1723391441080,-233.0,0.00018746,2]
[334649798,1723391441089,-233.0,0.00018746,2]
[334649799,1723391441099,-233.0,0.00018746,2]
[334649800,1723391441109,-233.0,0.00018746,2]
[334649801,1723391441119,-464.0,0.00018746,2]
[334649802,1723391441130,-464.0,0.00018746,2]
[334649803,1723391441139,-464.0,0.00018746,2]
[334649804,1723391441150,-464.0,0.00018746,2]
[334649805,1723391441160,-464.0,0.00018746,2]
[334649806,1723391441169,-464.0,0.00018746,2]
[334649807,1723391441179,-464.0,0.00018746,2]
[334649808,1723391441188,-464.0,0.00018746,2]
[334649809,1723391441198,-464.0,0.00018746,2]
[334649810,1723391441207,-464.0,0.00018746,2]
[334649811,1723391441217,-464.0,0.00018746,2]
[334649812,1723391441227,-464.0,0.00018746,2]
[334649813,1723391441236,-464.0,0.00018746,2]
[334649814,1723391441246,-464.0,0.00018746,2]
[334649815,1723391441255,-233.0,0.00018746,2]
[334649816,1723391441264,-233.0,0.00018746,2]
[334649817,1723391441274,-233.0,0.00018746,2]
[334649818,1723391441283,-233.0,0.00018746,2]
[334649819,1723391441292,-233.0,0.00018746,2]
[334649820,1723391441302,-233.0,0.00018746,2]
[334649821,1723391441312,-233.0,0.00018746,2]
[334649822,1723391441321,-233.0,0.00018746,2]
[334649823,1723391441331,-233.0,0.00018746,2]
[334649824,1723391441341,-233.0,0.00018746,2]
[334649825,1723391441350,-233.0,0.00018746,2]
[334649826,1723391441360,-233.0,0.00018746,2]
[334649827,1723391441370,-233.0,0.00018746,2]
[334649828,1723391441382,-233.0,0.00018746,2]
[334649829,1723391441392,-464.0,0.00018746,2]
[334649830,1723391441401,-464.0,0.00018746,2]
[334649831,1723391441411,-464.0,0.00018746,2]
[334649832,1723391441421,-464.0,0.00018746,2]
[334649833,1723391441431,-464.0,0.00018746,2]
[334649834,1723391441440,-464.0,0.00018746,2]
[334649835,1723391441450,-464.0,0.00018746,2]
[334649836,1723391441459,-464.0,0.00018746,2]
[334649837,1723391441468,-464.0,0.00018746,2]
[334649838,1723391441478,-464.0,0.00018746,2]
[334649839,1723391441488,-464.0,0.00018746,2]
[334649840,1723391441497,-464.0,0.00018746,2]
[334649841,1723391441509,-464.0,0.00018746,2]
[334649842,1723391441519,-464.0,0.00018746,2]
[334649843,1723391441529,-233.0,0.00018746,2]
[334649844,1723391441538,-233.0,0.00018746,2]
[334649845,1723391441548,-233.0,0.00018746,2]
[334649846,1723391441558,-233.0,0.00018746,2]
[334649847,1723391441568,-233.0,0.00018746,2]
[334649848,1723391441578,-233.0,0.00018746,2]
[334649849,1723391441587,-233.0,0.00018746,2]
[334649850,1723391441597,-233.0,0.00018746,2]
[334649851,1723391441606,-233.0,0.00018746,2]
[334649852,1723391441617,-233.0,0.00018746,2]
[334649853,1723391441630,-233.0,0.00018746,2]
[334649854,1723391441641,-233.0,0.00018746,2]
[334649855,1723391441651,-233.0,0.00018746,2]
[334649856,1723391441662,-233.0,0.00018746,2]
[334649857,1723391441672,-464.0,0.00018746,2]
[334649858,1723391441682,-464.0,0.00018746,2]
[334649859,1723391441692,-464.0,0.00018746,2]
[334649860,1723391441701,-464.0,0.00018746,2]
[334649861,1723391441711,-464.0,0.00018746,2]
[334649862,1723391441724,-464.0,0.00018746,2]
[334649863,1723391441734,-464.0,0.00018746,2]
[334649864,1723391441744,-464.0,0.00018746,2]
[334649865,1723391441754,-464.0,0.00018746,2]
[334649866,1723391441764,-464.0,0.00018746,2]
[334649867,1723391441773,-464.0,0.00018746,2]
[334649868,1723391441783,-464.0,0.00018746,2]
[334649869,1723391441794,-464.0,0.00018746,2]
[334649870,1723391441804,-464.0,0.00018746,2]
[334649871,1723391441948,-233.0,0.00018746,2]
[334649872,1723391441958,-233.0,0.00018746,2]
[334649873,1723391441969,-233.0,0.00018746,2]
[334649874,1723391441979,-233.0,0.00018746,2]
[334649875,1723391441989,-233.0,0.00018746,2]
[334649876,1723391441999,-233.0,0.00018746,2]
[334649877,1723391442008,-233.0,0.00018746,2]
[334649878,1723391442018,-233.0,0.00018746,2]
[334649879,1723391442027,-233.0,0.00018746,2]
[334649880,1723391442037,-233.0,0.00018746,2]
[334649881,1723391442047,-233.0,0.00018746,2]
[334649882,1723391442057,-233.0,0.00018746,2]
[334649883,1723391442066,-233.0,0.00018746,2]
[334649884,1723391442077,-233.0,0.00018746,2]
[334649885,1723391442088,-464.0,0.00018746,2]
[334649886,1723391442098,-464.0,0.00018746,2]
[334649887,1723391442107,-464.0,0.00018746,2]
[334649888,1723391442117,-464.0,0.00018746,2]
[334649889,1723391442130,-464.0,0.00018746,2]
[334649890,1723391442139,-464.0,0.00018746,2]
[334649891,1723391442150,-464.0,0.00018746,2]
[334649892,1723391442160,-464.0,0.00018746,2]
[334649893,1723391442170,-464.0,0.00018746,2]
[334649894,1723391442181,-464.0,0.00018746,2]
[334649895,1723391442191,-464.0,0.00018746,2]
[334649896,1723391442202,-464.0,0.00018746,2]
[334649897,1723391442212,-464.0,0.00018746,2]
[334649898,1723391442223,-464.0,0.00018746,2]
[334649899,1723391442232,-233.0,0.00018764,2]
[334649900,1723391442242,-233.0,0.00018764,2]
[334649901,1723391442252,-233.0,0.00018764,2]
[334649902,1723391442262,-233.0,0.00018764,2]
[334649903,1723391442272,-233.0,0.00018764,2]
[334649904,1723391442281,-233.0,0.00018764,2]
[334649905,1723391442290,-233.0,0.00018764,2]
[334649906,1723391442300,-233.0,0.00018764,2]
[334649907,1723391442310,-233.0,0.00018764,2]
[334649908,1723391442320,-233.0,0.00018764,2]
[334649909,1723391442329,-233.0,0.00018764,2]
[334649910,1723391442339,-233.0,0.00018764,2]
[334649911,1723391442349,-233.0,0.00018764,2]
[334649912,1723391442358,-464.0,0.00018764,2]
[334649913,1723391442369,-464.0,0.00018764,2]
[334649914,1723391442388,-464.0,0.00018764,2]
[334649915,1723391442400,-464.0,0.00018764,2]
[334649916,1723391442410,-464.0,0.00018764,2]
[334649917,1723391442419,-464.0,0.00018764,2]
[334649918,1723391442429,-464.0,0.00018764,2]
[334649919,1723391442439,-464.0,0.00018764,2]
[334649920,1723391442448,-464.0,0.00018764,2]
[334649921,1723391442459,-464.0,0.00018764,2]
[334649922,1723391442469,-464.0,0.00018764,2]
[334649923,1723391442478,-464.0,0.00018764,2]
[334649924,1723391442488,-464.0,0.00018764,2]
[334649925,1723391442498,-233.0,0.00018764,2]
[334649926,1723391442508,-233.0,0.00018764,2]
[334649927,1723391442519,-233.0,0.00018764,2]
[334649928,1723391442528,-233.0,0.00018764,2]
[334649929,1723391442538,-233.0,0.00018764,2]
[334649930,1723391442547,-233.0,0.00018764,2]
[334649931,1723391442557,-233.0,0.00018764,2]
[334649932,1723391442567,-233.0,0.00018764,2]
[334649933,1723391442577,-233.0,0.00018764,2]
[334649934,1723391442586,-233.0,0.00018764,2]
[334649935,1723391442597,-233.0,0.00018764,2]
[334649936,1723391442606,-233.0,0.00018764,2]
[334649937,1723391442616,-233.0,0.00018764,2]
[334649938,1723391442626,-233.0,0.00018764,2]
[334649939,1723391442636,-464.0,0.00018764,2]
[334649940,1723391442646,-464.0,0.00018764,2]
[334649941,1723391442657,-464.0,0.00018764,2]
[334649942,1723391442667,-464.0,0.00018764,2]
[334649943,1723391442676,-464.0,0.00018764,2]
[334649944,1723391442687,-464.0,0.00018764,2]
[334649945,1723391442696,-464.0,0.00018764,2]
[334649946,1723391442705,-464.0,0.00018764,2]
[334649947,1723391442716,-464.0,0.00018764,2]
[334649948,1723391442729,-464.0,0.00018764,2]
[334649949,1723391442740,-464.0,0.00018764,2]
[334649950,1723391442750,-464.0,0.00018764,2]
[334649951,1723391442761,-464.0,0.00018764,2]
[334649952,1723391442771,-464.0,0.00018764,2]
[334649953,1723391442780,-151.0,0.00018773,2]
[334649954,1723391442790,-172.566062,0.00018773,2]
[334649955,1723391442800,-172.566062,0.00018773,2]
[334649956,1723391442810,-151.0,0.00018773,2]
[334649957,1723391442819,-151.0,0.00018773,2]
[334649958,1723391442829,-159.00402065,0.00018773,2]
[334649959,1723391442838,-1000.0,0.00018781,2]
[334649960,1723391442848,-154.76012181,0.00018786,2]
[334649961,1723391442857,-159.369747,0.0001879,2]
[334649962,1723391442866,-159.369747,0.0001879,2]
[334649963,1723391442881,-1685.50907,0.0001879,2]
[334649964,1723391442891,-1685.50907,0.0001879,2]
[334649965,1723391442900,-151.0,0.00018793,2]
[334649966,1723391442910,-151.0,0.00018793,2]
[334649967,1723391442920,-151.0,0.00018793,2]
[334649968,1723391442929,-151.0,0.00018793,2]
[334649969,1723391442938,-1000.0,0.000188,2]
[334649970,1723391442947,-330.24606229,0.0001881,2]
[334649971,1723391442957,-4429.95120236,0.00018811,2]
[334649972,1723391442966,-1000.0,0.00018825,2]
[334649973,1723391442976,-154.76012181,0.00018825,2]
[334649974,1723391442985,-300.0,0.00018826,2]
[334649975,1723391442994,-1000.0,0.00018834,2]
[334649976,1723391443004,-1000.0,0.0001884,2]
[334649977,1723391443013,-150.0,0.00018879,2]
[334649978,1723391443023,-1001.45167858,0.00018888,2]
[334649979,1723391443032,-2859.91942165,0.00018899,2]
[334649980,1723391443043,-237.07330954,0.00018899,2]
[334649981,1723391443052,-150.112233,0.000189,2]
[334649982,1723391443062,-150.112233,0.000189,2]
[334649983,1723391443071,-475.0,0.00018904,2]
[334649984,1723391443081,-414.28019691,0.0001891,2]
[334649985,1723391443090,-414.28019691,0.0001891,2]
[334649988,1723391443100,-519.46703512,0.0001891,2]
[334649991,1723391443109,-163.4978854,0.0001891,2]
[334649994,1723391443119,-1000.0,0.00018916,2]
[334649995,1723391443129,-571.912253,0.00018923,2]
[334649996,1723391443139,-571.912253,0.00018923,2]
[334649997,1723391443148,-269.65614473,0.00018945,7]
[334649998,1723391443158,-1000.0,0.00018954,2]
[334649999,1723391443167,-1000.0,0.00018956,2]
[334650000,1723391443176,-1000.0,0.00018983,2]
[334650001,1723391443186,-151.0,0.0001899,2]
[334650002,1723391443196,-151.0,0.0001899,2]
[334650003,1723391443205,-151.0,0.0001899,2]
[334650004,1723391443215,-151.0,0.0001899,2]
[334650005,1723391443226,-153.326434,0.00019,2]
[334650006,1723391443235,-150.112233,0.00019,2]
[334650007,1723391443244,-17279.03294824,0.00019,2]
[334650008,1723391443254,-38970.67805524,0.00019,2]
[334650009,1723391443263,-151.0,0.00019,2]
[334650010,1723391443274,-151.0,0.00019,2]
[334650011,1723391443285,-151.0,0.00019,2]
[334650012,1723391443294,-319.874486,0.00019,2]
[334650013,1723391443306,-319.874486,0.00019,2]
[334650014,1723391443315,-151.0,0.00019,2]
[334650015,1723391443325,-217.634412,0.00019,2]
[334650016,1723391443334,-217.634412,0.00019,2]
[334650017,1723391443345,-151.0,0.00019,2]
[334650018,1723391443355,-152.785211,0.00019,2]
[334650019,1723391443366,-151.0,0.00019,2]
[334650020,1723391443376,-172.566062,0.00019,2]
[334650021,1723391443385,-172.566062,0.00019,2]
[334650022,1723391443394,-151.0,0.00019,2]
[334650023,1723391443404,-151.0,0.00019,2]
[334650024,1723391443413,-188.639838,0.00019,2]
[334650025,1723391443423,-188.639838,0.00019,2]
[334650026,1723391443433,-2097.766407,0.00019,2]
[334650027,1723391443443,-726.963009,0.00019,2]
[334650029,1723391443455,-2097.766407,0.00019,2]
[334650031,1723391443466,-726.963009,0.00019,2]
[334650033,1723391443476,-537.303715,0.00019,2]
[334650034,1723391443485,-537.303715,0.00019,2]
[334650035,1723391443495,-762.956574,0.00019,2]
[334650036,1723391443504,-762.956574,0.00019,2]
[334650037,1723391443514,-308.615301,0.00019,2]
[334650038,1723391443524,-308.615301,0.00019,2]
[334650039,1723391443533,-153.508507,0.00019,2]
[334650040,1723391443543,-371.374112,0.00019,2]
[334650041,1723391443553,-1048.838175,0.00019,2]
[334650042,1723391443563,-151.0,0.00019,2]
[334650043,1723391443572,-371.374112,0.00019,2]
[334650044,1723391443583,-1048.838175,0.00019,2]
[334650045,1723391443592,-305.222173,0.00019,2]
[334650046,1723391443602,-305.222173,0.00019,2]
[334650047,1723391443612,-151.0,0.00019,2]
[334650048,1723391443622,-151.0,0.00019,2]
[334650049,1723391443633,-151.0,0.00019,2]
[334650050,1723391443642,-652.406214,0.00019,2]
[334650051,1723391443653,-652.406214,0.00019,2]
[334650052,1723391443662,-1172.99085,0.00019,2]
[334650053,1723391443672,-151.0,0.00019,2]
[334650054,1723391443681,-1172.99085,0.00019,2]
[334650055,1723391443691,-303.274043,0.00019,2]
[334650056,1723391443702,-151.0,0.00019,2]
[334650057,1723391443712,-303.274043,0.00019,2]
[334650058,1723391443726,-385.8453,0.00019,2]
[334650059,1723391443735,-385.8453,0.00019,2]
[334650060,1723391443745,-151.0,0.00019,2]
[334650061,1723391443761,-587.0,0.00019005,2]
[334650062,1723391443770,-1000.0,0.00019013,2]
[334650064,1723391443780,-1000.0,0.0001902,2]
[334650065,1723391443790,-1000.0,0.00019022,2]
[334650066,1723391443800,-449.50223741,0.00019023,2]
[334650067,1723391443810,-250.0,0.00019041,2]
[334650068,1723391443820,-154.76012181,0.00019046,2]
[334650069,1723391443829,-154.76012181,0.00019046,2]
[334650070,1723391443838,-300.0,0.00019058,2]
[334650071,1723391443848,-150.112233,0.000191,2]
[334650072,1723391443858,-186.3613724,0.000191,2]
[334650073,1723391443867,-150.112233,0.000191,2]
[334650074,1723391443878,-249.12131678,0.00019117,2]
[334650075,1723391443887,-250.94975,0.00019143,2]
[334650076,1723391443896,-522.80309354,0.00019153,2]
[334650077,1723391443907,-200.0,0.00019162,2]
[334650078,1723391443916,-200.0,0.00019162,2]
[334650079,1723391443925,-200.0,0.00019162,2]
[334650080,1723391443934,-200.0,0.00019162,2]
[334650081,1723391443944,-200.0,0.00019162,2]
[334650082,1723391443954,-159.38116829,0.00019167,2]
[334650083,1723391443963,-150.01,0.00019176,2]
[334650084,1723391443973,-2993.60033153,0.00019176,2]
[334650085,1723391443982,-500.0,0.00019178,2]
[334650086,1723391443992,-500.0,0.00019178,2]
[334650087,1723391444001,-500.0,0.00019178,2]
[334650088,1723391444010,-500.0,0.00019178,2]
[334650089,1723391444021,-500.0,0.00019178,2]
[334650090,1723391444031,-500.0,0.00019178,2]
[334650092,1723391444041,-500.0,0.00019178,2]
[334650094,1723391444050,-500.0,0.00019178,2]
[334650096,1723391444060,-500.0,0.00019178,2]
[334650097,1723391444069,-500.0,0.00019178,2]
[334650098,1723391444078,-500.0,0.00019178,2]
[334650099,1723391444087,-500.0,0.00019178,2]
[334650100,1723391444096,-456.48,0.00019178,2]
[334650101,1723391444105,-169.557785,0.00019178,2]
[334650102,1723391444115,-158.809766,0.00019178,2]
[334650103,1723391444125,-169.344195,0.00019178,2]
[334650104,1723391444134,-150.112233,0.000192,2]
[334650105,1723391444143,-151.0,0.0001925,2]
[334650106,1723391444153,-879.99708554,0.00019252,2]
[334650107,1723391444162,-150.112233,0.000193,2]
[334650108,1723391444172,-150.112233,0.000193,2]
[334650109,1723391444181,-150.112233,0.000194,2]
[334650110,1723391444190,-150.112233,0.000194,2]
[334650111,1723391444200,-932.99527997,0.00019451,2]
[334650112,1723391444210,-150.112233,0.000195,2]
[334650113,1723391444219,-500.0,0.00019508,2]
[334650114,1723391444229,-500.0,0.00019508,2]
[334650115,1723391444238,-213.36842833,0.00019508,2]
[334650116,1723391444248,-159.369747,0.00019547,2]
[334650117,1723391444257,-159.369747,0.00019547,2]
[334650118,1723391444267,-571.912253,0.00019547,2]
[334650119,1723391444277,-1685.50907,0.00019547,2]
[334650120,1723391444286,-1685.50907,0.00019547,2]
[334650121,1723391444295,-571.912253,0.00019547,2]
[334650122,1723391444305,-154.76012181,0.00019547,2]
[334650123,1723391444314,-151.0,0.00019575,2]
[334650124,1723391444323,-150.0,0.00019596,2]
[334650125,1723391444333,-507.0,0.00019596,2]
[334650126,1723391444342,-1413.0,0.00019596,2]
[334650127,1723391444352,-212.26,0.00019596,2]
[334650128,1723391444361,-150.682,0.00019596,2]
[334650129,1723391444371,-1000.0,0.000196,4]
[334650130,1723391444385,-1000.0,0.000196,5]
[334650131,1723391444394,-150.112233,0.000196,2]
[334650132,1723391444404,-150.112233,0.000196,2]
[334650133,1723391444414,-150.112233,0.000197,2]
[334650134,1723391444424,-151.0,0.000197,2]
[334650135,1723391444434,-151.0,0.000197,2]
[334650136,1723391444444,-151.0,0.000197,2]
[334650137,1723391444454,-151.0,0.000197,2]
[334650138,1723391444464,-188.639838,0.000197,2]
[334650139,1723391444474,-188.639838,0.000197,2]
[334650140,1723391444483,-2097.766407,0.000197,2]
[334650141,1723391444493,-726.963009,0.000197,2]
[334650142,1723391444503,-2097.766407,0.000197,2]
[334650143,1723391444513,-726.963009,0.000197,2]
[334650144,1723391444522,-537.303715,0.000197,2]
[334650145,1723391444532,-537.303715,0.000197,2]
[334650146,1723391444542,-762.956574,0.000197,2]
[334650147,1723391444552,-762.956574,0.000197,2]
[334650148,1723391444562,-308.615301,0.000197,2]
[334650149,1723391444571,-308.615301,0.000197,2]
[334650150,1723391444581,-371.374112,0.000197,2]
[334650151,1723391444590,-371.374112,0.000197,2]
[334650152,1723391444600,-151.0,0.000197,2]
[334650153,1723391444610,-652.406214,0.000197,2]
[334650154,1723391444619,-652.406214,0.000197,2]
[334650155,1723391444632,-1172.99085,0.000197,2]
[334650156,1723391444644,-151.0,0.000197,2]
[334650157,1723391444654,-1172.99085,0.000197,2]
[334650158,1723391444663,-303.274043,0.000197,2]
[334650159,1723391444674,-151.0,0.000197,2]
[334650160,1723391444684,-303.274043,0.000197,2]
[334650161,1723391444694,-385.8453,0.000197,2]
[334650162,1723391444704,-385.8453,0.000197,2]
[334650163,1723391444715,-151.0,0.000197,2]
[334650164,1723391444729,-153.0,0.00019703,2]
[334650165,1723391444739,-153.0,0.00019703,2]
[334650166,1723391444749,-153.0,0.00019703,2]
[334650167,1723391444760,-306.0,0.00019703,2]
[334650168,1723391444770,-153.0,0.00019703,2]
[334650169,1723391444904,-200.0,0.00019773,2]
[334650170,1723391444915,-215149.75163502,0.000198,2]
[334650171,1723391444928,-40463.16697321,0.000198,2]
[334650172,1723391444937,-151.0,0.000198,2]
[334650173,1723391444947,-151.0,0.000198,2]
[334650174,1723391444957,-151.0,0.000198,2]
[334650175,1723391444968,-274.397647,0.000198,2]
[334650176,1723391444978,-319.874486,0.000198,2]
[334650177,1723391444988,-319.874486,0.000198,2]
[334650178,1723391444997,-151.0,0.000198,2]
[334650179,1723391445007,-217.634412,0.000198,2]
[334650180,1723391445017,-217.634412,0.000198,2]
[334650181,1723391445026,-151.0,0.000198,2]
[334650182,1723391445035,-151.0,0.000198,2]
[334650183,1723391445044,-151.0,0.000198,2]
[334650184,1723391445054,-151.0,0.000198,2]
[334650185,1723391445064,-172.566062,0.000198,2]
[334650186,1723391445073,-151.0,0.000198,2]
[334650187,1723391445083,-172.566062,0.000198,2]
[334650188,1723391445095,-151.0,0.000198,2]
[334650189,1723391445105,-151.0,0.000198,2]
[334650190,1723391445115,-188.639838,0.000198,2]
[334650191,1723391445127,-188.639838,0.000198,2]
[334650192,1723391445137,-2097.766407,0.000198,2]
[334650193,1723391445147,-726.963009,0.000198,2]
[334650194,1723391445157,-2097.766407,0.000198,2]
[334650195,1723391445167,-726.963009,0.000198,2]
[334650196,1723391445177,-537.303715,0.000198,2]
[334650197,1723391445188,-537.303715,0.000198,2]
[334650198,1723391445197,-762.956574,0.000198,2]
[334650199,1723391445207,-762.956574,0.000198,2]
[334650200,1723391445217,-308.615301,0.000198,2]
[334650201,1723391445227,-308.615301,0.000198,2]
[334650202,1723391445236,-371.374112,0.000198,2]
[334650203,1723391445246,-1048.838175,0.000198,2]
[334650204,1723391445256,-151.0,0.000198,2]
[334650205,1723391445267,-371.374112,0.000198,2]
[334650206,1723391445277,-1048.838175,0.000198,2]
[334650207,1723391445287,-305.222173,0.000198,2]
[334650208,1723391445296,-305.222173,0.000198,2]
[334650209,1723391445307,-151.0,0.000198,2]
[334650210,1723391445316,-151.0,0.000198,2]
[334650211,1723391445326,-151.0,0.000198,2]
[334650212,1723391445336,-652.406214,0.000198,2]
[334650213,1723391445346,-652.406214,0.000198,2]
[334650214,1723391445356,-1172.99085,0.000198,2]
[334650215,1723391445365,-1172.99085,0.000198,2]
[334650216,1723391445374,-303.274043,0.000198,2]
[334650217,1723391445388,-303.274043,0.000198,2]
[334650218,1723391445397,-151.0,0.000198,2]
[334650219,1723391445406,-385.8453,0.000198,2]
[334650220,1723391445416,-385.8453,0.000198,2]
[334650221,1723391445426,-151.0,0.000198,2]
[334650222,1723391445436,-159.369747,0.000198,2]
[334650223,1723391445445,-159.369747,0.000198,2]
[334650224,1723391445454,-571.912253,0.000198,2]
[334650225,1723391445464,-1685.50907,0.000198,2]
[334650226,1723391445475,-1685.50907,0.000198,2]
[334650227,1723391445485,-571.912253,0.000198,2]
[334650228,1723391445495,-500.0,0.00019821,7]
[334650229,1723391445506,-500.0,0.00019821,7]
[334650230,1723391445515,-500.0,0.00019821,7]
[334650231,1723391445527,-500.0,0.00019821,7]
[334650232,1723391445538,-500.0,0.00019821,7]
[334650233,1723391445547,-194.18,0.00019821,7]
[334650234,1723391445558,-151.0,0.00019899,2]
[334650235,1723391445567,-155.0,0.0001991,2]
[334650236,1723391445577,-5638.80425776,0.0001999,2]
[334650237,1723391445587,-301.25996446,0.00019999,2]
[334650238,1723391445598,-153.0,0.0002,2]
[334650239,1723391445609,-156.5036659,0.0002,2]
[334650240,1723391445619,-154.76012181,0.0002,2]
[334650241,1723391445629,-427.42147881,0.0002,2]
[334650242,1723391445639,-1392.94350918,0.0002,2]
[334650243,1723391445650,-336.48303043,0.0002,2]
[334650244,1723391445661,-10039.50554608,0.0002,14]
[334650245,1723391445670,-222.78569548,0.0002,2]
[334650246,1723391445680,-1093.49324984,0.0002,2]
[334650247,1723391445689,-154.76012181,0.0002,2]
[334650248,1723391445698,-2755.0,0.0002,2]
[334650249,1723391445708,-1000.0,0.0002,20]
[334650250,1723391445724,-435.0,0.0002,2]
[334650251,1723391445735,-294.37791673,0.0002,2]
[334650252,1723391445744,-250.0,0.0002,2]
[334650253,1723391445754,-1094.46,0.0002,2]
[334650254,1723391445765,-906.44622373,0.0002,2]
[334650255,1723391445774,-151.56653755,0.0002,2]
[334650256,1723391445784,-485.74985428,0.00020214,2]
[334650257,1723391445793,-151.0,0.00020224,2]
[334650258,1723391445802,-151.0,0.00020224,2]
[334650259,1723391445812,-1011.055116,0.000203,2]
[334650260,1723391445822,-3060.37619982,0.00020304,2]
[334650261,1723391445831,-302.8946902,0.0002045,2]
[334650262,1723391445840,-725.8134554,0.0002045,2]
[334650263,1723391445849,-294.6834504,0.0002045,2]
[334650264,1723391445859,-294.6834504,0.0002045,2]
[334650265,1723391445869,-294.6834504,0.0002045,2]
[334650266,1723391445880,-294.6834504,0.0002045,2]